fUST/lending_fUST_20241024
["ID","MTS","AMOUNT","RATE_DAILY","PERIOD"]
[340721420,1729710647132,-206.31747742,0.00033989,2]
[340721421,1729710647142,-4053.36520619,0.00033989,2]
[340721422,1729710647151,-151.0,0.0003399,14]
[340721423,1729710647160,-151.0,0.0003399,14]
[340721424,1729710647171,-151.0,0.0003399,14]
[340721425,1729710647181,-151.0,0.0003399,14]
[340721426,1729710647191,-151.0,0.0003399,14]
[340721427,1729710647202,-151.0,0.0003399,14]
[340721428,1729710647211,-151.0,0.0003399,14]
[340721429,1729710647221,-957.243194,0.0003399,14]
[340721430,1729710647231,-151.0,0.0003399,14]
[340721431,1729710647240,-160.0,0.00033999,10]
[340721432,1729710647250,-151642.6428272,0.00034,120]
[340721433,1729710647260,-200.0,0.00034,120]
[340721434,1729710647269,-1000.0,0.00034,15]
[340721435,1729710647279,-1000.0,0.00034,15]
[340721436,1729710647288,-17585.36729917,0.00034,120]
[340721437,1729710647313,-6719.4,0.00034,120]
[340721438,1729710647325,-2776.27637918,0.00034,120]
[340721439,1729710647337,-1356.5099045,0.00034,120]
[340721440,1729710647348,-2162.53910812,0.00034,120]
[340721441,1729710647360,-2135.67124547,0.00034,120]
[340721442,1729710647372,-616.0,0.00034,120]
[340721443,1729710647583,-7856.29275404,0.00034,120]
[340721522,1729711832537,-216.86783,0.00013699,2]
[340721524,1729711832548,-159.07104,0.00013973,2]
[340721527,1729711832568,-2454.63660398,0.00016987,2]
[340721529,1729711832579,-216.86783,0.00020187,2]
[340721531,1729711832589,-300.0,0.00022149,2]
[340721534,1729711832600,-223.44484757,0.0002215,2]
[340721536,1729711832610,-5130.15473458,0.0002215,4]
[340721538,1729711832622,-2565.07736729,0.0002215,4]
[340721540,1729711832633,-2565.07736729,0.0002215,4]
[340721542,1729711832643,-2565.07736729,0.0002215,4]
[340721544,1729711832655,-2565.07736729,0.0002215,4]
[340721547,1729711832665,-2565.07736729,0.0002215,4]
[340721549,1729711832675,-484.36250867,0.0002215,4]
[340721551,1729711832689,-258.62347216,0.0002215,4]
[340721553,1729711832701,-1464.22202607,0.0002215,4]
[340721583,1729711838600,-357.86936039,0.0002215,4]
[340721585,1729711838609,-472.87973666,0.0002215,4]
[340721588,1729711838622,-2092.19763063,0.0002215,4]
[340721590,1729711838631,-2565.07736729,0.0002215,4]
[340721592,1729711838641,-2565.07736729,0.0002215,4]
[340721594,1729711838652,-2565.07736729,0.0002215,4]
[340721596,1729711838667,-2565.07736729,0.0002215,4]
[340721598,1729711838676,-2565.07736729,0.0002215,4]
[340721600,1729711838687,-2565.07736729,0.0002215,4]
[340721601,1729711838696,-528.9445449,0.0002215,4]
[340721602,1729711838724,-674.80666933,0.0002215,4]
[340721603,1729711838818,-1361.32615306,0.0002215,4]
[340721604,1729711838828,-1486.69320402,0.0002215,4]
[340721605,1729711838839,-1078.38416327,0.0002215,4]
[340721606,1729711838850,-2565.07736729,0.0002215,4]
[340721607,1729711838859,-288.873264,0.0002215,4]
[340721608,1729711838871,-1106.90285706,0.0002215,4]
[340721609,1729711838882,-301.63803436,0.0002215,4]
[340721625,1729711840625,-867.66321187,0.0002215,4]
[340721626,1729711840636,-790.25870242,0.0002215,4]
[340721694,1729711843673,-725.96988784,0.0002215,4]
[340721696,1729711843685,-501.9970183,0.0002215,4]
[340721697,1729711843698,-546.85175873,0.0002215,4]
[340721698,1729711843707,-840.10446214,0.0002215,4]
[340721699,1729711843717,-840.10446214,0.0002215,4]
[340721700,1729711843726,-840.10446214,0.0002215,4]
[340721701,1729711843736,-840.10446214,0.0002215,4]
[340721702,1729711843746,-840.10446214,0.0002215,4]
[340721703,1729711843755,-840.10446214,0.0002215,4]
[340721704,1729711843765,-444.69722862,0.0002215,4]
[340721705,1729711843784,-395.40723352,0.0002215,4]
[340721706,1729711843794,-840.10446214,0.0002215,4]
[340721707,1729711843804,-840.10446214,0.0002215,4]
[340721708,1729711843814,-840.10446214,0.0002215,4]
[340721709,1729711843824,-840.10446214,0.0002215,4]
[340721710,1729711843833,-840.10446214,0.0002215,4]
[340721711,1729711843843,-840.10446214,0.0002215,4]
[340721712,1729711843853,-840.10446214,0.0002215,4]
[340721713,1729711843863,-840.10446214,0.0002215,4]
[340721714,1729711843873,-840.10446214,0.0002215,4]
[340721715,1729711843884,-840.10446214,0.0002215,4]
[340721716,1729711843894,-840.10446214,0.0002215,4]
[340721717,1729711843903,-840.10446214,0.0002215,4]
[340721718,1729711843913,-492.93289132,0.0002215,4]
[340721719,1729711843925,-347.17157082,0.0002215,4]
[340721720,1729711843936,-159.07104,0.00022174,2]
[340721721,1729711843946,-500.0,0.000222,2]
[340721722,1729711843957,-181.91020426,0.000222,2]
[340721729,1729711846492,-318.08979574,0.000222,2]
[340721730,1729711846502,-500.0,0.000222,2]
[340721731,1729711846512,-358.48730253,0.000222,2]
[340721732,1729711846524,-1000.0,0.00022474,2]
[340721733,1729711846534,-1500.0,0.00022875,2]
[340721734,1729711846542,-216.86783,0.00026676,2]
[340721735,1729711846551,-200.0,0.00028344,15]
[340721736,1729711846560,-23195.0142573,0.00028344,2]
[340721737,1729711846570,-166.666666,0.00029391,2]
[340721738,1729711846579,-1000.0,0.0003,120]
[340721739,1729711846588,-278.0,0.0003,2]
[340721740,1729711846598,-770.75500971,0.00030151,30]
[340721741,1729711846607,-166.666666,0.00030192,2]
[340721742,1729711846616,-159.07104,0.00030374,2]
[340721743,1729711846627,-166.666666,0.00030994,2]
[340721744,1729711846637,-166.666666,0.00031795,2]
[340721745,1729711846646,-9900.79,0.0003199,10]
[340721746,1729711846655,-225.83394426,0.00031999,2]
[340721747,1729711846665,-3429.31189065,0.00032,15]
[340721748,1729711846677,-453.0,0.00032,15]
[340721749,1729711846689,-2173.30310994,0.00032,15]
[340721750,1729711846700,-2350.24770534,0.00032,15]
[340721751,1729711846969,-1675.25759254,0.00032,15]
[340721752,1729711846981,-714.27373382,0.00032,15]
[340721765,1729713032602,-192.603451,0.00013699,2]
[340721766,1729713032613,-159.07104,0.00013973,2]
[340721767,1729713032622,-197.954296,0.0001544,2]
[340721768,1729713032632,-197.954297,0.0001544,2]
[340721769,1729713032643,-197.954296,0.00015826,2]
[340721770,1729713032653,-197.954297,0.00015826,2]
[340721771,1729713032663,-197.954296,0.00016212,2]
[340721772,1729713032673,-197.954297,0.00016212,2]
[340721773,1729713032683,-192.603451,0.00020187,2]
[340721774,1729713032694,-270.487968,0.0002418,2]
[340721775,1729713032703,-159.07104,0.00024224,2]
[340721776,1729713032713,-166.666666,0.00024231,2]
[340721777,1729713032723,-188.263,0.00024574,2]
[340721778,1729713032733,-166.666666,0.00024891,2]
[340721779,1729713032743,-202.853622,0.00025494,2]
[340721780,1729713032753,-166.666666,0.00025552,2]
[340721781,1729713032762,-202.853622,0.00025564,2]
[340721782,1729713032775,-202.853622,0.00025634,2]
[340721783,1729713032785,-202.853622,0.00025704,2]
[340721784,1729713032795,-202.853622,0.00025774,2]
[340721785,1729713032805,-202.853622,0.00025844,2]
[340721786,1729713032815,-202.853622,0.00025914,2]
[340721787,1729713032825,-202.853622,0.00025984,2]
[340721788,1729713032835,-202.853622,0.00026054,2]
[340721789,1729713032850,-202.853622,0.00026124,2]
[340721790,1729713032861,-202.853622,0.00026194,2]
[340721791,1729713032871,-166.666666,0.00026213,2]
[340721792,1729713032880,-300.0,0.00026213,2]
[340721793,1729713032891,-202.853622,0.00026264,2]
[340721794,1729713032900,-202.853622,0.00026334,2]
[340721795,1729713032910,-202.853622,0.00026403,2]
[340721796,1729713032921,-202.853622,0.00026473,2]
[340721797,1729713032930,-202.853622,0.00026543,2]
[340721798,1729713032941,-202.853622,0.00026613,2]
[340721799,1729713032951,-192.603451,0.00026676,2]
[340721800,1729713032962,-202.853622,0.00026683,2]
[340721801,1729713032973,-202.853622,0.00026753,2]
[340721802,1729713032983,-202.853622,0.00026823,2]
[340721803,1729713032994,-166.666666,0.00026873,2]
[340721804,1729713033004,-500.0,0.00027397,120]
[340721805,1729713033014,-507.0,0.00027397,90]
[340721806,1729713033024,-166.666666,0.00027534,2]
[340721807,1729713033034,-184.198,0.00028224,19]
[340721808,1729713033043,-5427.568,0.00031,4]
[340721809,1729713033053,-151.0,0.00031,2]
[340721810,1729713033062,-270.487968,0.00031405,2]
[340721811,1729713033072,-1124.77618233,0.000315,60]
[340721812,1729713033082,-8890.20115101,0.00031511,2]
[340721813,1729713033092,-899.36115018,0.00031595,7]
[340721814,1729713033103,-232.0,0.00031596,2]
[340721815,1729713033112,-586.56182096,0.00031958,2]
[340721816,1729713033122,-380.57973442,0.00031959,7]
[340721817,1729713033132,-4780.02133122,0.00031959,4]
[340721818,1729713033147,-3638.03356978,0.00031959,4]
[340721819,1729713033159,-3110.10317953,0.00031959,4]
[340721820,1729713033172,-781.79114636,0.00031959,4]
[340721821,1729713033188,-664.34,0.00031959,4]
[340721835,1729713038803,-8945.85,0.00031949,10]
[340721836,1729713038813,-7825.29829251,0.00031959,4]
[340721837,1729713038823,-15944.61032342,0.00031959,4]
[340721838,1729713038863,-312.11999997,0.00031959,4]
[340721860,1729713040763,-4983.30634241,0.00031959,4]
[340721861,1729713040774,-170.14630701,0.00031968,2]
[340721862,1729713040787,-158.08376099,0.00031968,2]
[340721863,1729713040796,-6589.41591965,0.00031969,2]
[340721864,1729713040812,-7575.61037547,0.00031969,2]
[340721865,1729713040823,-47629.39405836,0.00031969,7]
[340721866,1729713040834,-62398.7625581,0.0003197,4]
[340721867,1729713040845,-21240.0366658,0.0003197,4]
[340721868,1729713040865,-62398.7625581,0.0003198,4]
[340721869,1729713040874,-21956.56875885,0.0003198,4]
[340721897,1729713044111,-20523.50457285,0.0003198,4]
[340721898,1729713044121,-600.0,0.00031989,2]
[340721900,1729713044132,-62398.7625581,0.0003199,4]
[340721902,1729713044142,-63720.1099975,0.0003199,4]
[340721903,1729713044151,-151.0,0.0003199,7]
[340721904,1729713044161,-151.0,0.0003199,7]
[340721905,1729713044171,-151.0,0.0003199,7]
[340721906,1729713044181,-151.0,0.0003199,7]
[340721907,1729713044191,-151.0,0.0003199,7]
[340721908,1729713044202,-151.0,0.0003199,7]
[340721909,1729713044212,-151.0,0.0003199,7]
[340721910,1729713044222,-281.599502,0.0003199,7]
[340721911,1729713044232,-281.599502,0.0003199,7]
[340721912,1729713044241,-151.0,0.0003199,7]
[340721913,1729713044252,-174180.0074528,0.00032,15]
[340721914,1729713044262,-151.0,0.00032,7]
[340721915,1729713044273,-151.0,0.00032,7]
[340721916,1729713044283,-268.38284,0.00032,7]
[340721917,1729713044295,-268.38284,0.00032,7]
[340721918,1729713044304,-151.0,0.00032,7]
[340721919,1729713044314,-151.0,0.00032,7]
[340721920,1729713044323,-151.0,0.00032,7]
[340721921,1729713044523,-151.0,0.00032,7]
[340721922,1729713044547,-151.0,0.00032,7]
[340721923,1729713044558,-151.0,0.00032,7]
[340721924,1729713044569,-151.0,0.00032,7]
[340721925,1729713044579,-151.0,0.00032,7]
[340721926,1729713044589,-151.0,0.00032,7]
[340721927,1729713044599,-151.0,0.00032,7]
[340721928,1729713044609,-151.0,0.00032,7]
[340721929,1729713044619,-151.0,0.00032,7]
[340721930,1729713044629,-151.0,0.00032,7]
[340721931,1729713044639,-151.0,0.00032,7]
[340721932,1729713044650,-151.0,0.00032,7]
[340721933,1729713044660,-151.0,0.00032,7]
[340721934,1729713044671,-151.0,0.00032,7]
[340721935,1729713044681,-151.0,0.00032,7]
[340721936,1729713044691,-281.599502,0.00032,7]
[340721937,1729713044701,-281.599502,0.00032,7]
[340721938,1729713044711,-151.0,0.00032,7]
[340721939,1729713044720,-505.33164263,0.00032192,2]
[340721940,1729713044730,-306.0,0.0003251,2]
[340721941,1729713044740,-153.0,0.00032673,2]
[340721942,1729713044750,-20799.5875194,0.00032867,4]
[340721943,1729713044760,-269.468167,0.00032877,120]
[340721944,1729713044771,-1000.0,0.00033,120]
[340721945,1729713044781,-192.603451,0.00033165,2]
[340721946,1729713044796,-151.05957798,0.0003351,4]
[340721947,1729713044806,-21240.0366658,0.00033591,5]
[340721948,1729713044815,-700.17192735,0.00033601,30]
[340721949,1729713044825,-500.0,0.00033601,30]
[340721950,1729713044835,-500.0,0.00033601,30]
[340721951,1729713044846,-500.0,0.00033601,30]
[340721952,1729713044858,-500.0,0.00033601,30]
[340721953,1729713044868,-500.0,0.00033601,30]
[340721954,1729713044880,-500.0,0.00033601,30]
[340721955,1729713044893,-500.0,0.00033601,30]
[340721956,1729713044903,-500.0,0.00033601,30]
[340721957,1729713044914,-500.0,0.00033601,30]
[340721958,1729713044923,-500.0,0.00033601,30]
[340721959,1729713044936,-157.0,0.0003383,120]
[340721960,1729713044946,-408.82008879,0.00033861,2]
[340721961,1729713044957,-21240.0366658,0.00033951,5]
[340721962,1729713044969,-21240.0366658,0.0003396,5]
[340721963,1729713044979,-151.0,0.00033961,14]
[340721964,1729713044990,-909.381034,0.00033961,14]
[340721965,1729713045000,-909.381034,0.00033961,14]
[340721966,1729713045010,-151.0,0.00033961,14]
[340721967,1729713045020,-151.0,0.00033961,14]
[340721968,1729713045031,-268.38284,0.00033961,14]
[340721969,1729713045044,-268.38284,0.00033961,14]
[340721970,1729713045054,-175.717885,0.00033961,14]
[340721971,1729713045064,-151.0,0.00033961,14]
[340721972,1729713045075,-151.0,0.00033961,14]
[340721973,1729713045085,-231.62734,0.00033961,14]
[340721974,1729713045096,-151.0,0.00033961,14]
[340721975,1729713045109,-151.0,0.00033961,14]
[340721976,1729713045119,-151.0,0.00033961,14]
[340721977,1729713045129,-151.0,0.00033961,14]
[340721978,1729713045139,-151.0,0.00033961,14]
[340721979,1729713045149,-151.0,0.00033961,14]
[340721980,1729713045160,-151.0,0.00033961,14]
[340721981,1729713045170,-151.0,0.00033961,14]
[340721982,1729713045180,-281.599502,0.00033961,14]
[340721983,1729713045191,-281.599502,0.00033961,14]
[340721984,1729713045201,-151.0,0.00033961,14]
[340721985,1729713045211,-151.0,0.0003397,14]
[340721986,1729713045222,-151.0,0.0003397,14]
[340721987,1729713045232,-151.0,0.0003397,14]
[340721988,1729713045243,-151.0,0.0003397,14]
[340721989,1729713045254,-151.0,0.0003397,14]
[340721990,1729713045265,-21240.0366658,0.0003397,5]
[340721991,1729713045276,-206.31747741,0.00033989,2]
[340721992,1729713045288,-2026.68260309,0.00033989,2]
[340721993,1729713045298,-151.0,0.0003399,14]
[340721994,1729713045310,-151.0,0.0003399,14]
[340721995,1729713045321,-151.0,0.0003399,14]
[340721996,1729713045331,-151.0,0.0003399,14]
[340721997,1729713045341,-151.0,0.0003399,14]
[340721998,1729713045353,-151.0,0.0003399,14]
[340721999,1729713045363,-151.0,0.0003399,14]
[340722000,1729713045373,-151.0,0.0003399,14]
[340722001,1729713045382,-151.0,0.0003399,14]
[340722002,1729713045395,-151.0,0.0003399,14]
[340722003,1729713045406,-909.381034,0.0003399,14]
[340722004,1729713045415,-909.381034,0.0003399,14]
[340722005,1729713045425,-151.0,0.0003399,14]
[340722006,1729713045435,-151.0,0.0003399,14]
[340722007,1729713045446,-268.38284,0.0003399,14]
[340722008,1729713045455,-268.38284,0.0003399,14]
[340722009,1729713045465,-151.0,0.0003399,14]
[340722010,1729713045475,-151.0,0.0003399,14]
[340722011,1729713045485,-151.0,0.0003399,14]
[340722012,1729713045495,-160.0,0.00033999,10]
[340722013,1729713045505,-402426.33276674,0.00034,120]
[340722014,1729713045516,-300.0,0.00034,9]
[340722015,1729713045526,-101164.45,0.00034,15]
[340722016,1729713045539,-3000.37944184,0.00034,120]
[340722017,1729713045549,-151.0,0.00034,14]
[340722018,1729713045559,-151.0,0.00034,14]
[340722019,1729713045569,-151.0,0.00034,14]
[340722020,1729713045579,-151.0,0.00034,14]
[340722021,1729713045590,-151.0,0.00034,14]
[340722022,1729713045601,-151.0,0.00034,14]
[340722023,1729713045611,-246.779065,0.00034,14]
[340722024,1729713045620,-151.0,0.00034,14]
[340722025,1729713045630,-151.0,0.00034,14]
[340722026,1729713045640,-909.381034,0.00034,14]
[340722027,1729713045650,-909.381034,0.00034,14]
[340722028,1729713045661,-909.381034,0.00034,14]
[340722029,1729713045671,-909.381034,0.00034,14]
[340722030,1729713045681,-151.0,0.00034,14]
[340722031,1729713045691,-151.0,0.00034,14]
[340722032,1729713045702,-151.0,0.00034,14]
[340722033,1729713045713,-243.575595,0.00034,14]
[340722034,1729713045723,-268.38284,0.00034,14]
[340722035,1729713045734,-268.38284,0.00034,14]
[340722036,1729713045745,-268.38284,0.00034,14]
[340722037,1729713045754,-268.38284,0.00034,14]
[340722038,1729713045764,-151.0,0.00034,14]
[340722039,1729713045774,-151.0,0.00034,14]
[340722040,1729713045787,-279.137255,0.00034,14]
[340722041,1729713045796,-151.0,0.00034,14]
[340722042,1729713045805,-265.658742,0.00034,14]
[340722043,1729713045815,-151.0,0.00034,14]
[340722044,1729713045825,-151.0,0.00034,14]
[340722045,1729713045834,-151.0,0.00034,14]
[340722046,1729713045847,-235.737392,0.00034,14]
[340722047,1729713045857,-151.0,0.00034,14]
[340722048,1729713045867,-151.0,0.00034,14]
[340722049,1729713045878,-151.0,0.00034,14]
[340722050,1729713045889,-151.0,0.00034,14]
[340722051,1729713045899,-281.599502,0.00034,14]
[340722052,1729713045909,-281.599502,0.00034,14]
[340722053,1729713045919,-281.599502,0.00034,14]
[340722054,1729713045929,-281.599502,0.00034,14]
[340722055,1729713045938,-151.0,0.00034,14]
[340722056,1729713045947,-151.0,0.00034,14]
[340722057,1729713045956,-500.0,0.00034167,5]
[340722058,1729713045965,-808.45,0.00034246,120]
[340722059,1729713045975,-4912.0,0.000344,15]
[340722060,1729713045986,-500.0,0.00034418,60]
[340722061,1729713045996,-2535.70023337,0.00034419,4]
[340722062,1729713046006,-160.0,0.00034435,10]
[340722063,1729713046015,-151.0,0.00034435,14]
[340722064,1729713046025,-151.0,0.00034435,14]
[340722065,1729713046034,-151.0,0.00034435,14]
[340722066,1729713046044,-151.0,0.00034435,14]
[340722068,1729713046053,-151.0,0.00034435,14]
[340722069,1729713046067,-153.05376,0.00034435,14]
[340722070,1729713046077,-150.0,0.00034436,14]
[340722071,1729713046086,-150.0,0.00034436,14]
[340722072,1729713046095,-200.0,0.00034436,14]
[340722073,1729713046104,-1000.0,0.00034436,2]
[340722074,1729713046113,-10120.60687651,0.00034436,2]
[340722076,1729713046124,-9853.38495872,0.00034436,2]
[340722078,1729713046134,-122128.28965946,0.00034436,2]
[340722079,1729713046144,-294.46358674,0.00034436,3]
[340722080,1729713046154,-6200.6764482,0.00034436,7]
[340722081,1729713046164,-2966.04179885,0.00034436,7]
[340722082,1729713046175,-5502.16153977,0.00034436,5]
[340722083,1729713046186,-517.22677395,0.00034436,14]
[340722084,1729713046196,-192636.28274629,0.00034436,5]
[340722085,1729713046207,-767.35513694,0.00034436,5]
[340722087,1729713046222,-24002.92415995,0.00034436,5]
[340722089,1729713046234,-13560.98112658,0.00034436,5]
[340722091,1729713046245,-2751.40712096,0.00034436,4]
[340722092,1729713046255,-19594.31812955,0.00034436,7]
[340722093,1729713046268,-2773.27014123,0.00034436,7]
[340722102,1729713046567,-5847.62118343,0.00034436,7]
[340722105,1729713046580,-2798.869392,0.00034436,7]
[340722111,1729713046632,-116261.64878009,0.00034436,7]
[340722134,1729714231924,-163.712933,0.00013699,2]
[340722135,1729714231934,-89.42579802,0.00013973,2]
[340722136,1729714231977,-69.64524198,0.00013973,2]
[340722137,1729714231988,-300.178062,0.000171,6]
[340722138,1729714231998,-163.712933,0.00020187,2]
[340722139,1729714232008,-159.07104,0.00026274,2]
[340722140,1729714232018,-163.712933,0.00026676,2]
[340722141,1729714232027,-250.0,0.00028,120]
[340722142,1729714232037,-166.666666,0.00028076,2]
[340722143,1729714232047,-166.666666,0.00028841,2]
[340722144,1729714232057,-166.666666,0.00029607,2]
[340722145,1729714232067,-252.9322781,0.00029674,2]
[340722146,1729714232077,-250.0,0.0003,120]
[340722147,1729714232087,-166.666666,0.00030372,2]
[340722148,1729714232097,-166.666666,0.00031138,2]
[340722149,1729714232107,-166.666666,0.00031903,2]
[340722150,1729714232118,-250.0,0.00032,120]
[340722151,1729714232129,-505.33164263,0.00032207,2]
[340722152,1729714232138,-269.468169,0.00032877,120]
[340722153,1729714232148,-163.712933,0.00033165,2]
[340722154,1729714232158,-202.23477129,0.000334,120]
[340722173,1729714237999,-48.16522871,0.000334,120]
[340722174,1729714238010,-151.05957798,0.00034089,7]
[340722175,1729714238020,-464.56519331,0.00034264,30]
[340722176,1729714238104,-1960.30769788,0.00034264,30]
[340722177,1729714238115,-157.0,0.0003427,120]
[340722178,1729714238124,-408.82008879,0.00034346,2]
[340722179,1729714238133,-300.0,0.000344,9]
[340722180,1729714238142,-184.199,0.00034422,38]
[340722181,1729714238154,-2026.68260309,0.00034435,2]
[340722182,1729714238164,-206.31747741,0.00034435,2]
[340722183,1729714238174,-250.0,0.00034436,14]
[340722184,1729714238183,-193.0,0.0003444,2]
[340722185,1729714238194,-8083.02,0.0003444,10]
[340722186,1729714238204,-253.71982294,0.0003444,7]
[340722187,1729714238214,-160.0,0.00034445,10]
[340722188,1729714238224,-160.0,0.00034445,10]
[340722189,1729714238234,-151.0,0.00034446,14]
[340722190,1729714238243,-151.0,0.00034446,14]
[340722191,1729714238254,-600.0,0.00034446,2]
[340722192,1729714238265,-151.0,0.00034446,14]
[340722193,1729714238275,-232.31568,0.00034446,14]
[340722194,1729714238285,-727.504828,0.00034446,14]
[340722195,1729714238541,-727.504828,0.00034446,14]
[340722196,1729714238551,-727.504828,0.00034446,14]
[340722197,1729714238560,-727.504828,0.00034446,14]
[340722198,1729714238570,-727.504828,0.00034446,14]
[340722199,1729714238580,-727.504828,0.00034446,14]
[340722200,1729714238590,-727.504828,0.00034446,14]
[340722201,1729714238600,-727.504828,0.00034446,14]
[340722202,1729714238610,-151.0,0.00034446,14]
[340722203,1729714238623,-151.0,0.00034446,14]
[340722204,1729714238633,-151.0,0.00034446,14]
[340722205,1729714238645,-151.0,0.00034446,14]
[340722206,1729714238655,-151.0,0.00034446,14]
[340722207,1729714238666,-151.0,0.00034446,14]
[340722208,1729714238677,-151.0,0.00034446,14]
[340722209,1729714238687,-151.0,0.00034446,14]
[340722210,1729714238697,-151.0,0.00034446,14]
[340722211,1729714238707,-151.0,0.00034446,14]
[340722212,1729714238719,-151.0,0.00034446,14]
[340722213,1729714238730,-808.45,0.00034446,120]
[340722214,1729714238740,-151.0,0.00034446,14]
[340722215,1729714238749,-151.0,0.00034446,14]
[340722216,1729714238759,-151.0,0.00034446,14]
[340722217,1729714238769,-279.137255,0.00034446,14]
[340722218,1729714238779,-151.0,0.00034446,14]
[340722219,1729714238788,-151.0,0.00034446,14]
[340722220,1729714238798,-151.0,0.00034446,14]
[340722221,1729714238807,-151.0,0.00034446,14]
[340722222,1729714238817,-268.38284,0.00034446,14]
[340722223,1729714238826,-268.38284,0.00034446,14]
[340722224,1729714238836,-268.38284,0.00034446,14]
[340722225,1729714238846,-268.38284,0.00034446,14]
[340722226,1729714238856,-268.38284,0.00034446,14]
[340722227,1729714238867,-151.0,0.00034446,14]
[340722228,1729714238878,-268.38284,0.00034446,14]
[340722229,1729714238888,-268.38284,0.00034446,14]
[340722230,1729714238898,-268.38284,0.00034446,14]
[340722231,1729714238907,-151.0,0.00034446,14]
[340722232,1729714238917,-151.0,0.00034446,14]
[340722233,1729714238927,-151.0,0.00034446,14]
[340722234,1729714238937,-151.0,0.00034446,14]
[340722235,1729714238946,-151.0,0.00034446,14]
[340722236,1729714238956,-175.717885,0.00034446,14]
[340722237,1729714238966,-151.0,0.00034446,14]
[340722238,1729714238975,-162.23336621,0.00034449,7]
[340722239,1729714238986,-5641.95486564,0.0003445,7]
[340722240,1729714238999,-65500.8680165,0.0003445,7]
[340722444,1729714242916,-1167.49999999,0.00034435,2]
[340722636,1729714245800,-859.1826031,0.00034435,2]
[340722637,1729714245810,-12620.28,0.0003444,10]
[340722638,1729714245821,-207873.52207466,0.0003445,7]
[340722639,1729714245831,-11300.12915165,0.0003445,7]
[340722648,1729715113795,10000.0,0.00011012,2]
[340722720,1729715432018,-157.758289,0.00013699,2]
[340722721,1729715432027,-171.470422,0.00013973,2]
[340722722,1729715432037,-159.07104,0.00013973,2]
[340722723,1729715432047,-167.092768,0.0001544,2]
[340722724,1729715432057,-151.503142,0.0001544,2]
[340722725,1729715432066,-237.814557,0.0001544,2]
[340722726,1729715432076,-237.814557,0.00015633,2]
[340722727,1729715432085,-151.503142,0.00015826,2]
[340722728,1729715432094,-237.814557,0.00015826,2]
[340722729,1729715432104,-237.814557,0.00016019,2]
[340722730,1729715432114,-151.503142,0.00016212,2]
[340722731,1729715432123,-237.814557,0.00016212,2]
[340722732,1729715432133,-303.11517528,0.0002,2]
[340722733,1729715432142,-157.758289,0.00020187,2]
[340722734,1729715432152,-303.11517528,0.000202,2]
[340722735,1729715432163,-213.98095407,0.000203,2]
[340722736,1729715432172,-303.11517528,0.000204,2]
[340722737,1729715432182,-303.11517528,0.000206,2]
[340722738,1729715432192,-303.11517528,0.000208,2]
[340722739,1729715432201,-253.318014,0.00021,2]
[340722740,1729715432210,-454.67276292,0.00021,4]
[340722741,1729715432219,-454.67276292,0.000212,4]
[340722742,1729715432229,-151.503143,0.00021271,2]
[340722743,1729715432238,-454.67276292,0.000214,4]
[340722744,1729715432247,-454.11190127,0.000216,4]
[340722745,1729715432257,-151.503143,0.00021802,2]
[340722746,1729715432267,-166.666666,0.00021918,2]
[340722747,1729715432277,-180.0,0.00022022,2]
[340722748,1729715432287,-300.0,0.00022022,2]
[340722749,1729715432296,-382.59458384,0.00022023,2]
[340722750,1729715432306,-8604.62953174,0.00022023,2]